[Event "Early-Titled-Tuesday-Blitz-February-27-2024"]
[Site "Chess.com"]
[Date "2024.02.27"]
[Round "11"]
[White "shirovin"]
[Black "Dewarfd"]
[Result "0-1"]
[WhiteElo "2069"]
[BlackElo "2148"]
[TimeControl "180+1"]
[EndTime "10:06:15 PST"]
[Termination "Dewarfd won on time"]

1. e4 {[%clk 0:03:00.9]} 1... c5 {[%clk 0:02:58.9]} 2. Nf3 {[%clk 0:02:59.9]}
2... Nc6 {[%clk 0:02:57.4]} 3. b4 {[%clk 0:02:59]} 3... cxb4 {[%clk 0:02:56]} 4.
c3 {[%clk 0:02:58.6]} 4... d5 {[%clk 0:02:54.9]} 5. e5 {[%clk 0:02:49.9]} 5...
Bg4 {[%clk 0:02:45.3]} 6. Bb5 {[%clk 0:02:46.6]} 6... e6 {[%clk 0:02:44.4]} 7.
d4 {[%clk 0:02:38.6]} 7... bxc3 {[%clk 0:02:43.3]} 8. Nxc3 {[%clk 0:02:36.9]}
8... Bb4 {[%clk 0:02:43]} 9. Bd2 {[%clk 0:02:35.2]} 9... Ne7 {[%clk 0:02:42.5]}
10. a3 {[%clk 0:02:22.7]} 10... Ba5 {[%clk 0:02:41.2]} 11. O-O {[%clk 0:02:16]}
11... O-O {[%clk 0:02:40.8]} 12. Ne2 {[%clk 0:02:01]} 12... Bxf3 {[%clk
0:02:35.3]} 13. gxf3 {[%clk 0:01:59.1]} 13... a6 {[%clk 0:02:26.2]} 14. Bd3
{[%clk 0:01:57.4]} 14... f6 {[%clk 0:02:04.4]} 15. Qc2 {[%clk 0:01:52.7]} 15...
f5 {[%clk 0:01:56.8]} 16. Bxa5 {[%clk 0:01:43.2]} 16... Qxa5 {[%clk 0:01:53.3]}
17. Rfb1 {[%clk 0:01:32.4]} 17... b5 {[%clk 0:01:52.5]} 18. Qc5 {[%clk
0:01:13.9]} 18... Rac8 {[%clk 0:01:49.6]} 19. Qd6 {[%clk 0:01:13]} 19... Kf7
{[%clk 0:01:43.6]} 20. Kh1 {[%clk 0:00:59]} 20... Rfd8 {[%clk 0:01:42.5]} 21.
Qc5 {[%clk 0:00:34.5]} 21... Nxe5 {[%clk 0:01:34.4]} 22. Qxc8 {[%clk 0:00:33.6]}
22... Rxc8 {[%clk 0:01:32.4]} 23. dxe5 {[%clk 0:00:33.6]} 23... g5 {[%clk
0:01:07.7]} 24. a4 {[%clk 0:00:30.2]} 24... b4 {[%clk 0:00:51.6]} 25. Nc1 {[%clk
0:00:22]} 25... Ng6 {[%clk 0:00:48.5]} 26. Nb3 {[%clk 0:00:20.5]} 26... Qb6
{[%clk 0:00:47.4]} 27. Rf1 {[%clk 0:00:14.8]} 27... Nxe5 {[%clk 0:00:45.3]} 28.
a5 {[%clk 0:00:13.5]} 28... Qb7 {[%clk 0:00:43.8]} 29. Be2 {[%clk 0:00:13]}
29... Rc3 {[%clk 0:00:34.7]} 30. Nd4 {[%clk 0:00:11.9]} 30... Ng6 {[%clk
0:00:30.4]} 31. Rfe1 {[%clk 0:00:09]} 31... Nf4 {[%clk 0:00:29.9]} 32. Bd1
{[%clk 0:00:07.6]} 32... Rd3 {[%clk 0:00:29.3]} 33. Nb3 {[%clk 0:00:05.7]} 33...
d4 {[%clk 0:00:29.1]} 34. Nc5 {[%clk 0:00:05.3]} 34... Qd5 {[%clk 0:00:19.3]}
35. Nxd3 {[%clk 0:00:04.1]} 35... Nxd3 {[%clk 0:00:20.2]} 36. Re2 {[%clk
0:00:04.2]} 36... e5 {[%clk 0:00:19.6]} 37. Bc2 {[%clk 0:00:03.4]} 37... e4
{[%clk 0:00:19.3]} 38. Bxd3 {[%clk 0:00:01.7]} 38... exd3 {[%clk 0:00:18.3]} 39.
Rd2 {[%clk 0:00:02.4]} 39... Qxf3+ {[%clk 0:00:18.1]} 40. Kg1 {[%clk 0:00:02.3]}
40... Qg4+ {[%clk 0:00:16.5]} 41. Kf1 {[%clk 0:00:01.8]} 41... Qe4 {[%clk
0:00:15.1]} 0-1

[Event "Early-Titled-Tuesday-Blitz-February-27-2024"]
[Site "Chess.com"]
[Date "2024.02.27"]
[Round "11"]
[White "LangesNasenhaar"]
[Black "GlavkonVVS"]
[Result "0-1"]
[WhiteElo "2391"]
[BlackElo "2524"]
[TimeControl "180+1"]
[EndTime "10:06:16 PST"]
[Termination "GlavkonVVS won by checkmate"]

1. d4 {[%clk 0:03:00.9]} 1... Nf6 {[%clk 0:02:59.7]} 2. Bg5 {[%clk 0:03:00.7]}
2... c5 {[%clk 0:02:59.1]} 3. Bxf6 {[%clk 0:03:00.5]} 3... gxf6 {[%clk
0:02:59.1]} 4. d5 {[%clk 0:03:00.8]} 4... Qb6 {[%clk 0:02:59.3]} 5. Qc1 {[%clk
0:03:01.1]} 5... Bh6 {[%clk 0:02:59.6]} 6. e3 {[%clk 0:03:00.6]} 6... f5 {[%clk
0:02:59]} 7. c4 {[%clk 0:02:48.9]} 7... d6 {[%clk 0:02:49.4]} 8. Bd3 {[%clk
0:02:41.9]} 8... Rg8 {[%clk 0:02:46.7]} 9. g3 {[%clk 0:02:41.2]} 9... e6 {[%clk
0:02:43.7]} 10. Ne2 {[%clk 0:02:40.2]} 10... Na6 {[%clk 0:02:40]} 11. a3 {[%clk
0:02:39.7]} 11... Nc7 {[%clk 0:02:21.5]} 12. Nbc3 {[%clk 0:02:38.7]} 12... Qa6
{[%clk 0:02:20.8]} 13. Qc2 {[%clk 0:02:35.4]} 13... b6 {[%clk 0:02:14.3]} 14.
O-O {[%clk 0:02:27.1]} 14... Bd7 {[%clk 0:02:02]} 15. b4 {[%clk 0:02:17.3]}
15... Rc8 {[%clk 0:01:57.6]} 16. e4 {[%clk 0:02:00.5]} 16... f4 {[%clk
0:01:48.6]} 17. e5 {[%clk 0:01:50.6]} 17... dxe5 {[%clk 0:01:45.4]} 18. d6
{[%clk 0:01:47.8]} 18... Na8 {[%clk 0:01:37.9]} 19. b5 {[%clk 0:01:44.4]} 19...
Qb7 {[%clk 0:01:37.1]} 20. Bxh7 {[%clk 0:01:26.9]} 20... Rg7 {[%clk 0:01:36.1]}
21. Ne4 {[%clk 0:01:11.6]} 21... f5 {[%clk 0:01:22.9]} 22. N2c3 {[%clk
0:00:36.7]} 22... Kf7 {[%clk 0:01:08.3]} 23. Rfe1 {[%clk 0:00:25.8]} 23... Rxh7
{[%clk 0:01:04.9]} 24. Rad1 {[%clk 0:00:21.6]} 24... fxe4 {[%clk 0:00:56.8]} 25.
Nxe4 {[%clk 0:00:21]} 25... Rg7 {[%clk 0:00:44.2]} 26. Qe2 {[%clk 0:00:21]}
26... Rg6 {[%clk 0:00:33.7]} 27. Qh5 {[%clk 0:00:20.5]} 27... Bg7 {[%clk
0:00:30.8]} 28. Ng5+ {[%clk 0:00:17.3]} 28... Kf6 {[%clk 0:00:31.1]} 29. Ne4+
{[%clk 0:00:13.1]} 29... Kf7 {[%clk 0:00:31.1]} 30. Ng5+ {[%clk 0:00:13.3]}
30... Kf6 {[%clk 0:00:30.2]} 31. Ne4+ {[%clk 0:00:13.6]} 31... Qxe4 {[%clk
0:00:22.5]} 32. Rxe4 {[%clk 0:00:13.3]} 32... Rg5 {[%clk 0:00:22.9]} 33. Qf3
{[%clk 0:00:11]} 33... Rh8 {[%clk 0:00:22]} 34. h4 {[%clk 0:00:09.8]} 34... Rf5
{[%clk 0:00:21.6]} 35. g4 {[%clk 0:00:06.9]} 35... Rxh4 {[%clk 0:00:19.3]} 36.
gxf5 {[%clk 0:00:06.9]} 36... exf5 {[%clk 0:00:19.8]} 37. Ree1 {[%clk
0:00:05.9]} 37... e4 {[%clk 0:00:20.1]} 38. Qe2 {[%clk 0:00:04.6]} 38... f3
{[%clk 0:00:20.2]} 39. Qb2+ {[%clk 0:00:03.6]} 39... Kf7 {[%clk 0:00:20.6]} 40.
Qc2 {[%clk 0:00:03.1]} 40... Rg4+ {[%clk 0:00:19.9]} 41. Kf1 {[%clk 0:00:03.2]}
41... Rh4 {[%clk 0:00:20.2]} 42. Kg1 {[%clk 0:00:02.8]} 42... Be5 {[%clk
0:00:18.9]} 43. Rd5 {[%clk 0:00:02.2]} 43... Bh2+ {[%clk 0:00:18.3]} 44. Kf1
{[%clk 0:00:01.9]} 44... Bxd6 {[%clk 0:00:17.5]} 45. Rxd6 {[%clk 0:00:01.2]}
45... Rh1# {[%clk 0:00:17.2]} 0-1

[Event "Early-Titled-Tuesday-Blitz-February-27-2024"]
[Site "Chess.com"]
[Date "2024.02.27"]
[Round "11"]
[White "Alexei_Gubajdullin"]
[Black "GMSrinath"]
[Result "0-1"]
[WhiteElo "2643"]
[BlackElo "2809"]
[TimeControl "180+1"]
[EndTime "10:06:17 PST"]
[Termination "GMSrinath won by resignation"]

1. d4 {[%clk 0:03:00.6]} 1... Nf6 {[%clk 0:02:59.2]} 2. Nf3 {[%clk 0:02:56.8]}
2... d5 {[%clk 0:02:58.2]} 3. Bf4 {[%clk 0:02:56.2]} 3... c5 {[%clk 0:02:57.1]}
4. e3 {[%clk 0:02:55.9]} 4... Nc6 {[%clk 0:02:57.6]} 5. Nbd2 {[%clk 0:02:55.9]}
5... Bg4 {[%clk 0:02:58.2]} 6. c3 {[%clk 0:02:55.7]} 6... e6 {[%clk 0:02:58.4]}
7. Qb3 {[%clk 0:02:55.5]} 7... Qc8 {[%clk 0:02:57]} 8. Ne5 {[%clk 0:02:55.4]}
8... Nxe5 {[%clk 0:02:54.6]} 9. dxe5 {[%clk 0:02:55.2]} 9... Nd7 {[%clk
0:02:54.3]} 10. c4 {[%clk 0:02:53.4]} 10... d4 {[%clk 0:02:47.1]} 11. Ne4 {[%clk
0:02:48.5]} 11... Be7 {[%clk 0:02:45.9]} 12. Bg5 {[%clk 0:02:36.1]} 12... f6
{[%clk 0:02:35.6]} 13. exf6 {[%clk 0:02:33.6]} 13... gxf6 {[%clk 0:02:36.5]} 14.
Bh6 {[%clk 0:02:30.5]} 14... e5 {[%clk 0:02:31.9]} 15. Ng3 {[%clk 0:02:15.2]}
15... Qc6 {[%clk 0:02:26.6]} 16. f3 {[%clk 0:02:09.9]} 16... Be6 {[%clk
0:02:21.6]} 17. Bd3 {[%clk 0:02:08.6]} 17... b5 {[%clk 0:02:04]} 18. Be4 {[%clk
0:01:59.8]} 18... Qc8 {[%clk 0:01:53.8]} 19. Bxa8 {[%clk 0:01:43.5]} 19... Bxc4
{[%clk 0:01:52.5]} 20. Qc2 {[%clk 0:01:40.2]} 20... Qxa8 {[%clk 0:01:53]} 21.
Nf5 {[%clk 0:01:38.7]} 21... Rg8 {[%clk 0:01:18.1]} 22. exd4 {[%clk 0:01:20.3]}
22... cxd4 {[%clk 0:01:15.4]} 23. b3 {[%clk 0:01:19.4]} 23... Bb4+ {[%clk
0:01:10.7]} 24. Kf2 {[%clk 0:01:18]} 24... Bd5 {[%clk 0:00:55.5]} 25. Qc7 {[%clk
0:01:00.3]} 25... Rxg2+ {[%clk 0:00:37]} 26. Kxg2 {[%clk 0:00:52.7]} 26... Bxf3+
{[%clk 0:00:37.9]} 27. Kf2 {[%clk 0:00:52.2]} 27... Bxh1 {[%clk 0:00:37.4]} 28.
Rxh1 {[%clk 0:00:51.9]} 28... Qxh1 {[%clk 0:00:29.1]} 29. Qc8+ {[%clk
0:00:48.7]} 29... Kf7 {[%clk 0:00:29.7]} 30. Qxd7+ {[%clk 0:00:48.5]} 30... Kg6
{[%clk 0:00:30.3]} 31. Nh4+ {[%clk 0:00:35.5]} 31... Kxh6 {[%clk 0:00:26.6]} 32.
Nf3 {[%clk 0:00:33.5]} 32... Qc1 {[%clk 0:00:19]} 33. Qh3+ {[%clk 0:00:29.7]}
33... Kg6 {[%clk 0:00:19.2]} 34. Qg4+ {[%clk 0:00:29.7]} 34... Kf7 {[%clk
0:00:19.8]} 35. Qh5+ {[%clk 0:00:30]} 35... Ke6 {[%clk 0:00:19]} 36. Qxh7 {[%clk
0:00:29.3]} 36... Qe3+ {[%clk 0:00:18.4]} 37. Kg3 {[%clk 0:00:27.8]} 37... Be1+
{[%clk 0:00:17.9]} 38. Kg4 {[%clk 0:00:09.2]} 38... Qf4+ {[%clk 0:00:17.5]} 39.
Kh5 {[%clk 0:00:07]} 39... Qxf3+ {[%clk 0:00:17.8]} 40. Kg6 {[%clk 0:00:07.9]}
40... Qe4+ {[%clk 0:00:17.5]} 41. Kg7 {[%clk 0:00:08.8]} 41... Qxh7+ {[%clk
0:00:15.2]} 42. Kxh7 {[%clk 0:00:09.7]} 42... d3 {[%clk 0:00:16.1]} 43. h4
{[%clk 0:00:07.2]} 43... Bxh4 {[%clk 0:00:15.7]} 0-1

[Event "Early-Titled-Tuesday-Blitz-February-27-2024"]
[Site "Chess.com"]
[Date "2024.02.27"]
[Round "11"]
[White "vovachesss"]
[Black "ProChessWICTH"]
[Result "0-1"]
[WhiteElo "2739"]
[BlackElo "2538"]
[TimeControl "180+1"]
[EndTime "10:06:17 PST"]
[Termination "ProChessWICTH won on time"]

1. e4 {[%clk 0:03:00.9]} 1... c5 {[%clk 0:02:55.9]} 2. Nf3 {[%clk 0:03:00.9]}
2... e6 {[%clk 0:02:55.3]} 3. g3 {[%clk 0:02:57.6]} 3... Nc6 {[%clk 0:02:52.1]}
4. Bg2 {[%clk 0:02:51]} 4... g6 {[%clk 0:02:49.3]} 5. O-O {[%clk 0:02:49.7]}
5... Bg7 {[%clk 0:02:48.7]} 6. c3 {[%clk 0:02:50.3]} 6... Nge7 {[%clk
0:02:47.9]} 7. d4 {[%clk 0:02:43.7]} 7... cxd4 {[%clk 0:02:47.4]} 8. Nxd4 {[%clk
0:02:43.5]} 8... Nxd4 {[%clk 0:02:34]} 9. cxd4 {[%clk 0:02:43.7]} 9... d5 {[%clk
0:02:34.6]} 10. e5 {[%clk 0:02:39.5]} 10... O-O {[%clk 0:02:33]} 11. Nc3 {[%clk
0:02:35.6]} 11... b6 {[%clk 0:02:19.4]} 12. Bg5 {[%clk 0:02:21.7]} 12... Ba6
{[%clk 0:02:06.5]} 13. Re1 {[%clk 0:02:21.6]} 13... Qd7 {[%clk 0:02:02.7]} 14.
Bxe7 {[%clk 0:02:18.3]} 14... Qxe7 {[%clk 0:01:59.9]} 15. Qa4 {[%clk 0:02:19.2]}
15... Qb7 {[%clk 0:01:53.4]} 16. Bf1 {[%clk 0:02:05.5]} 16... Bxf1 {[%clk
0:01:50.8]} 17. Kxf1 {[%clk 0:02:06.4]} 17... Rfc8 {[%clk 0:01:50.9]} 18. Rac1
{[%clk 0:02:06.2]} 18... Rc4 {[%clk 0:01:50]} 19. Qb3 {[%clk 0:01:58.4]} 19...
Rac8 {[%clk 0:01:40]} 20. Ne2 {[%clk 0:01:56.5]} 20... Bf8 {[%clk 0:01:11.6]}
21. a3 {[%clk 0:01:50.4]} 21... R8c7 {[%clk 0:00:52.8]} 22. Rc3 {[%clk 0:01:50]}
22... b5 {[%clk 0:00:43.3]} 23. Rec1 {[%clk 0:01:44.2]} 23... a5 {[%clk
0:00:19.8]} 24. h4 {[%clk 0:01:42.7]} 24... b4 {[%clk 0:00:16.2]} 25. axb4
{[%clk 0:01:41.3]} 25... axb4 {[%clk 0:00:15.5]} 26. Rxc4 {[%clk 0:01:40.5]}
26... dxc4 {[%clk 0:00:15.8]} 27. Rxc4 {[%clk 0:01:41.4]} 27... Qd5 {[%clk
0:00:16.1]} 28. Rxc7 {[%clk 0:00:16.9]} 28... Qxb3 {[%clk 0:00:15.8]} 29. Nf4
{[%clk 0:00:14.6]} 29... Qxb2 {[%clk 0:00:11.9]} 30. d5 {[%clk 0:00:15.3]} 30...
Qxe5 {[%clk 0:00:11.1]} 31. Rb7 {[%clk 0:00:11.7]} 31... exd5 {[%clk 0:00:09.9]}
32. Rb5 {[%clk 0:00:12.4]} 32... Qe8 {[%clk 0:00:05.7]} 33. Rb7 {[%clk
0:00:10.1]} 33... Qc6 {[%clk 0:00:05.6]} 34. Rb8 {[%clk 0:00:10.7]} 34... Qc4+
{[%clk 0:00:03.9]} 35. Kg1 {[%clk 0:00:09.4]} 35... b3 {[%clk 0:00:04.6]} 36. h5
{[%clk 0:00:09.5]} 36... g5 {[%clk 0:00:04.7]} 37. Nh3 {[%clk 0:00:04.9]} 37...
h6 {[%clk 0:00:05.2]} 38. Kg2 {[%clk 0:00:02.8]} 38... Kg7 {[%clk 0:00:05.2]}
39. Ng1 {[%clk 0:00:02.8]} 39... Qe4+ {[%clk 0:00:05.4]} 40. Kf1 {[%clk
0:00:02.4]} 40... Qb1+ {[%clk 0:00:05.3]} 41. Kg2 {[%clk 0:00:02.6]} 41... b2
{[%clk 0:00:06]} 42. Nf3 {[%clk 0:00:02.4]} 42... Qc2 {[%clk 0:00:05.7]} 0-1

[Event "Early-Titled-Tuesday-Blitz-February-27-2024"]
[Site "Chess.com"]
[Date "2024.02.27"]
[Round "11"]
[White "Goryachkina"]
[Black "As0nchess"]
[Result "1-0"]
[WhiteElo "2694"]
[BlackElo "2545"]
[TimeControl "180+1"]
[EndTime "10:06:22 PST"]
[Termination "Goryachkina won on time"]

1. e4 {[%clk 0:03:00.3]} 1... c5 {[%clk 0:02:57.2]} 2. Nf3 {[%clk 0:03:00.2]}
2... e6 {[%clk 0:02:56.9]} 3. d4 {[%clk 0:02:59.5]} 3... cxd4 {[%clk 0:02:57.8]}
4. Nxd4 {[%clk 0:03:00.4]} 4... Nc6 {[%clk 0:02:58.3]} 5. Nc3 {[%clk 0:03:00.2]}
5... a6 {[%clk 0:02:58.2]} 6. Nxc6 {[%clk 0:02:58]} 6... bxc6 {[%clk 0:02:58]}
7. Bd3 {[%clk 0:02:58]} 7... d5 {[%clk 0:02:57.4]} 8. O-O {[%clk 0:02:58]} 8...
Nf6 {[%clk 0:02:56.8]} 9. Qe2 {[%clk 0:02:58.2]} 9... Be7 {[%clk 0:02:55.3]} 10.
b3 {[%clk 0:02:56.2]} 10... O-O {[%clk 0:02:54]} 11. Bb2 {[%clk 0:02:55.3]}
11... Re8 {[%clk 0:02:49.7]} 12. Rad1 {[%clk 0:02:54.6]} 12... Qc7 {[%clk
0:02:47.7]} 13. h3 {[%clk 0:02:54.4]} 13... Bb7 {[%clk 0:02:47.1]} 14. Rfe1
{[%clk 0:02:45.1]} 14... c5 {[%clk 0:02:44]} 15. exd5 {[%clk 0:02:19.9]} 15...
exd5 {[%clk 0:02:43.8]} 16. Qf1 {[%clk 0:02:14.2]} 16... Bd6 {[%clk 0:02:31.1]}
17. Rxe8+ {[%clk 0:02:10.5]} 17... Nxe8 {[%clk 0:02:30.9]} 18. Bf5 {[%clk
0:01:53.8]} 18... Nf6 {[%clk 0:02:30.1]} 19. Ne2 {[%clk 0:01:50]} 19... d4
{[%clk 0:02:26.8]} 20. Nc1 {[%clk 0:01:10.6]} 20... a5 {[%clk 0:02:22.7]} 21. a4
{[%clk 0:01:07.7]} 21... Re8 {[%clk 0:02:20.3]} 22. Bd3 {[%clk 0:01:05.4]} 22...
Nd5 {[%clk 0:02:17.3]} 23. Ne2 {[%clk 0:01:01.4]} 23... Nb4 {[%clk 0:02:16.9]}
24. Bb5 {[%clk 0:00:58.6]} 24... Re7 {[%clk 0:02:14.9]} 25. c3 {[%clk
0:00:52.8]} 25... dxc3 {[%clk 0:02:13.4]} 26. Bxc3 {[%clk 0:00:47.3]} 26... h6
{[%clk 0:02:11.2]} 27. Ng3 {[%clk 0:00:33.7]} 27... Bxg3 {[%clk 0:01:23.5]} 28.
fxg3 {[%clk 0:00:34.6]} 28... Qxg3 {[%clk 0:01:23.5]} 29. Rd8+ {[%clk 0:00:31]}
29... Kh7 {[%clk 0:01:23.7]} 30. Qf5+ {[%clk 0:00:27.1]} 30... Qg6 {[%clk
0:01:22.8]} 31. Qxg6+ {[%clk 0:00:27.3]} 31... Kxg6 {[%clk 0:01:21.1]} 32. Kf2
{[%clk 0:00:23.3]} 32... f6 {[%clk 0:01:14.7]} 33. Bc4 {[%clk 0:00:23.3]} 33...
h5 {[%clk 0:01:07.2]} 34. h4 {[%clk 0:00:22.4]} 34... Kf5 {[%clk 0:01:02.8]} 35.
g3 {[%clk 0:00:22.2]} 35... Bc6 {[%clk 0:00:57.8]} 36. Rh8 {[%clk 0:00:21.9]}
36... Be8 {[%clk 0:00:39.1]} 37. Bd2 {[%clk 0:00:21.2]} 37... g6 {[%clk
0:00:20]} 38. Rf8 {[%clk 0:00:20.8]} 38... g5 {[%clk 0:00:12.1]} 39. hxg5 {[%clk
0:00:18.4]} 39... Bd7 {[%clk 0:00:09.3]} 40. gxf6 {[%clk 0:00:18.1]} 40... Re4
{[%clk 0:00:06.3]} 41. f7 {[%clk 0:00:17.8]} 41... Kf6 {[%clk 0:00:01.7]} 42.
Rd8 {[%clk 0:00:17]} 1-0

[Event "Early-Titled-Tuesday-Blitz-February-27-2024"]
[Site "Chess.com"]
[Date "2024.02.27"]
[Round "11"]
[White "dosto07"]
[Black "mertfelin"]
[Result "0-1"]
[WhiteElo "2466"]
[BlackElo "2333"]
[TimeControl "180+1"]
[EndTime "10:06:22 PST"]
[Termination "mertfelin won on time"]

1. e4 {[%clk 0:03:00.9]} 1... e5 {[%clk 0:03:00.3]} 2. Nf3 {[%clk 0:03:01.1]}
2... Nc6 {[%clk 0:03:00.5]} 3. Bb5 {[%clk 0:03:01.1]} 3... a6 {[%clk 0:03:01.2]}
4. Ba4 {[%clk 0:03:01.6]} 4... Nf6 {[%clk 0:03:01.7]} 5. O-O {[%clk 0:03:01.7]}
5... d6 {[%clk 0:03:02.4]} 6. Bxc6+ {[%clk 0:02:56.5]} 6... bxc6 {[%clk
0:03:02.7]} 7. d4 {[%clk 0:02:57.3]} 7... Nd7 {[%clk 0:02:48.3]} 8. Nc3 {[%clk
0:02:56.7]} 8... a5 {[%clk 0:02:47.5]} 9. Re1 {[%clk 0:02:55.8]} 9... Be7 {[%clk
0:02:48.1]} 10. b3 {[%clk 0:02:51.5]} 10... O-O {[%clk 0:02:48.1]} 11. Bb2
{[%clk 0:02:51.8]} 11... Ba6 {[%clk 0:02:46.3]} 12. Ne2 {[%clk 0:02:47]} 12...
Bf6 {[%clk 0:02:45.8]} 13. Ng3 {[%clk 0:02:46.2]} 13... g6 {[%clk 0:02:46.3]}
14. dxe5 {[%clk 0:02:44.1]} 14... dxe5 {[%clk 0:02:46.1]} 15. Qd2 {[%clk
0:02:41.4]} 15... Qe7 {[%clk 0:02:46]} 16. a4 {[%clk 0:02:33.7]} 16... Rfd8
{[%clk 0:02:39.5]} 17. Ba3 {[%clk 0:02:11.5]} 17... c5 {[%clk 0:02:30.5]} 18.
Qxa5 {[%clk 0:02:06.5]} 18... Bb7 {[%clk 0:02:28.9]} 19. Qxc7 {[%clk 0:01:47.8]}
19... Ba6 {[%clk 0:02:15.3]} 20. Rad1 {[%clk 0:01:42.9]} 20... Rac8 {[%clk
0:02:15.7]} 21. Qa5 {[%clk 0:01:39]} 21... Rc6 {[%clk 0:02:16.3]} 22. Rd5 {[%clk
0:01:27.8]} 22... Rdc8 {[%clk 0:02:05]} 23. Red1 {[%clk 0:01:25.8]} 23... Nf8
{[%clk 0:02:05.5]} 24. h3 {[%clk 0:00:58.6]} 24... R8c7 {[%clk 0:02:06.1]} 25.
Bb2 {[%clk 0:00:44]} 25... Re6 {[%clk 0:02:03]} 26. Ba3 {[%clk 0:00:41.1]} 26...
Rec6 {[%clk 0:02:03.2]} 27. Nh2 {[%clk 0:00:38.7]} 27... Bc8 {[%clk 0:02:03.5]}
28. Ng4 {[%clk 0:00:38.2]} 28... Bg7 {[%clk 0:02:00.8]} 29. Ne3 {[%clk
0:00:34.5]} 29... h5 {[%clk 0:01:45.4]} 30. Nc4 {[%clk 0:00:31.3]} 30... Be6
{[%clk 0:01:42.9]} 31. Rd8 {[%clk 0:00:27.7]} 31... h4 {[%clk 0:01:40.2]} 32.
Nf1 {[%clk 0:00:25.6]} 32... Qg5 {[%clk 0:01:38.6]} 33. Kh1 {[%clk 0:00:21.2]}
33... Bd7 {[%clk 0:01:39.1]} 34. Qa8 {[%clk 0:00:15.4]} 34... Rc8 {[%clk
0:01:19.9]} 35. Rxc8 {[%clk 0:00:11.6]} 35... Rxc8 {[%clk 0:01:20.5]} 36. Qb7
{[%clk 0:00:11.1]} 36... Bc6 {[%clk 0:01:16.9]} 37. Qxc8 {[%clk 0:00:10.8]}
37... Bxe4 {[%clk 0:01:17.5]} 38. Nfe3 {[%clk 0:00:10.1]} 38... Qf6 {[%clk
0:00:58.8]} 39. Qg4 {[%clk 0:00:08]} 39... Bb7 {[%clk 0:00:58.3]} 40. f3 {[%clk
0:00:07.9]} 40... Ne6 {[%clk 0:00:57.2]} 41. Rd6 {[%clk 0:00:07.3]} 41... Qe7
{[%clk 0:00:56.7]} 42. Nd5 {[%clk 0:00:06.2]} 42... Bxd5 {[%clk 0:00:55.4]} 43.
Rxd5 {[%clk 0:00:06.5]} 43... Nf4 {[%clk 0:00:56.2]} 44. Rd2 {[%clk 0:00:05.7]}
44... f5 {[%clk 0:00:50.5]} 45. Rd7 {[%clk 0:00:01.5]} 45... Qxd7 {[%clk
0:00:49.9]} 46. Qg5 {[%clk 0:00:01.2]} 46... Qd1+ {[%clk 0:00:27]} 47. Kh2
{[%clk 0:00:02.1]} 47... Ne2 {[%clk 0:00:27.9]} 48. Bxc5 {[%clk 0:00:01.4]}
48... Qd5 {[%clk 0:00:16.6]} 49. Bf2 {[%clk 0:00:02.2]} 49... Nf4 {[%clk
0:00:17.1]} 50. Qxh4 {[%clk 0:00:01.6]} 50... Ne6 {[%clk 0:00:17.7]} 51. Qg3
{[%clk 0:00:01]} 51... e4 {[%clk 0:00:17.8]} 0-1

[Event "Early-Titled-Tuesday-Blitz-February-27-2024"]
[Site "Chess.com"]
[Date "2024.02.27"]
[Round "11"]
[White "m_ezat"]
[Black "Chessdude1987"]
[Result "0-1"]
[WhiteElo "2481"]
[BlackElo "2381"]
[TimeControl "180+1"]
[EndTime "10:06:24 PST"]
[Termination "Chessdude1987 won by checkmate"]

1. d4 {[%clk 0:03:00.9]} 1... e6 {[%clk 0:03:00.3]} 2. c4 {[%clk 0:03:00.2]}
2... f5 {[%clk 0:03:00.1]} 3. Nc3 {[%clk 0:02:49.7]} 3... Nf6 {[%clk 0:03:00.4]}
4. Qc2 {[%clk 0:02:39]} 4... Bb4 {[%clk 0:03:00.1]} 5. e3 {[%clk 0:02:30.8]}
5... c5 {[%clk 0:02:59.6]} 6. a3 {[%clk 0:02:24.1]} 6... Bxc3+ {[%clk
0:02:59.6]} 7. bxc3 {[%clk 0:02:23.5]} 7... d6 {[%clk 0:02:59.2]} 8. Bd3 {[%clk
0:02:15.8]} 8... Qe7 {[%clk 0:02:57]} 9. f3 {[%clk 0:02:07.4]} 9... g6 {[%clk
0:02:56.9]} 10. Ne2 {[%clk 0:01:50.5]} 10... e5 {[%clk 0:02:56.9]} 11. e4 {[%clk
0:01:41.1]} 11... f4 {[%clk 0:02:43.8]} 12. g3 {[%clk 0:01:37]} 12... g5 {[%clk
0:02:36.7]} 13. h4 {[%clk 0:01:33.2]} 13... g4 {[%clk 0:02:34]} 14. gxf4 {[%clk
0:01:27.7]} 14... gxf3 {[%clk 0:02:33.7]} 15. Ng3 {[%clk 0:01:20.2]} 15... Rg8
{[%clk 0:02:26.1]} 16. Qf2 {[%clk 0:01:00.4]} 16... exd4 {[%clk 0:01:44.9]} 17.
cxd4 {[%clk 0:00:53.9]} 17... Nc6 {[%clk 0:01:34.8]} 18. d5 {[%clk 0:00:17.2]}
18... Nd4 {[%clk 0:01:33.1]} 19. Bb2 {[%clk 0:00:17.3]} 19... Ng4 {[%clk
0:01:32.8]} 20. Qd2 {[%clk 0:00:14.6]} 20... f2+ {[%clk 0:01:08.4]} 21. Kf1
{[%clk 0:00:13.6]} 21... Nb3 {[%clk 0:01:06.2]} 22. Qc3 {[%clk 0:00:13.4]} 22...
Nxa1 {[%clk 0:01:03.8]} 23. Bxa1 {[%clk 0:00:13.5]} 23... Bd7 {[%clk 0:00:42.3]}
24. e5 {[%clk 0:00:11]} 24... dxe5 {[%clk 0:00:23.9]} 25. fxe5 {[%clk
0:00:09.9]} 25... Rf8 {[%clk 0:00:20.6]} 26. e6 {[%clk 0:00:09.4]} 26... Bxe6
{[%clk 0:00:16.5]} 27. dxe6 {[%clk 0:00:08.7]} 27... O-O-O {[%clk 0:00:13.7]}
28. Be4 {[%clk 0:00:04.9]} 28... Rd1+ {[%clk 0:00:09.6]} 29. Ke2 {[%clk
0:00:05]} 29... Rxh1 {[%clk 0:00:08.6]} 30. Nxh1 {[%clk 0:00:04.6]} 30... f1=Q+
{[%clk 0:00:08.4]} 31. Kd2 {[%clk 0:00:03.8]} 31... Rd8+ {[%clk 0:00:08.1]} 32.
Kc2 {[%clk 0:00:03.6]} 32... Qd1+ {[%clk 0:00:05.3]} 33. Kb2 {[%clk 0:00:04.5]}
33... Rd2+ {[%clk 0:00:04.2]} 34. Qxd2 {[%clk 0:00:05.4]} 34... Qxd2+ {[%clk
0:00:04.3]} 35. Bc2 {[%clk 0:00:06.3]} 35... Qf6+ {[%clk 0:00:04.3]} 36. Kb3
{[%clk 0:00:06.5]} 36... Qxa1 {[%clk 0:00:04.1]} 37. Nf2 {[%clk 0:00:07.3]}
37... Qxc2+ {[%clk 0:00:04.1]} 38. Kxc2 {[%clk 0:00:06.9]} 38... Qa2+ {[%clk
0:00:04.5]} 39. Kd3 {[%clk 0:00:07.1]} 39... Qxf2 {[%clk 0:00:04.7]} 40. e7
{[%clk 0:00:07.7]} 40... Kd7 {[%clk 0:00:05]} 41. e8=Q+ {[%clk 0:00:07.3]} 41...
Kxe8 {[%clk 0:00:05.3]} 42. a4 {[%clk 0:00:08.2]} 42... Qe3+ {[%clk 0:00:05.2]}
43. Kc2 {[%clk 0:00:07.4]} 43... Qd4 {[%clk 0:00:05.5]} 44. Kb3 {[%clk
0:00:07.7]} 44... Ne3 {[%clk 0:00:05.6]} 45. a5 {[%clk 0:00:07.8]} 45... Qxc4+
{[%clk 0:00:05.8]} 46. Ka3 {[%clk 0:00:08.7]} 46... Qb4+ {[%clk 0:00:05.6]} 47.
Ka2 {[%clk 0:00:08.9]} 47... c4 {[%clk 0:00:06]} 48. a6 {[%clk 0:00:08.7]} 48...
Qb3+ {[%clk 0:00:06.4]} 49. Ka1 {[%clk 0:00:09.6]} 49... Nc2# {[%clk 0:00:06.6]}
0-1